[Event "ESP-ch Rapid 2018"]
[Site "Linares"]
[Date "2018.08.19"]
[Round "5"]
[White "Silva Rodriguez, Fernando"]
[Black "Lopez Gonzalez, Alfonso"]
[Result "1-0"]
[ECO "D63"]
[WhiteElo "2239"]
[BlackElo "2063"]
[Annotator "NA"]
[PlyCount "103"]
[EventDate "2018.08.19"]
[EventType "team-tourn"]
[EventCountry "ESP"]
[SourceTitle "playchess.com"]
[Source "ChessBase"]
[SourceQuality "1"]
[TimeControl "900+5"]

1. d4 {[%emt 0:00:00]} e6 {[%emt 0:00:00]} 2. c4 {[%emt 0:00:00]} d5 {[%emt 0:00:00]} 3. Nf3 {[%emt 0:00:01]} Nf6 {[%emt 0:00:00]} 4. Nc3 {[%emt 0:00:02]} Be7 {[%emt 0:00:00]} 5. Bg5 {[%emt 0:00:02]} Nbd7 {[%emt 0:00:00]} 6. e3 {[%emt 0:00:03]} O-O {[%emt 0:00:03]} 7. Rc1 {[%emt 0:00:02]} a6 {[%emt 0:00:18]} 8. cxd5 {[%emt 0:00:03]} exd5 {[%emt 0:00:01]} 9. Bd3 {[%emt 0:00:03]} c6 {[%emt 0:00:01]} 10. Qc2 {[%emt 0:00:06]} Re8 {[%emt 0:00:01]} 11. O-O {[%emt 0:00:03]} Nf8 {[%emt 0:00:01]} 12. h3 {[%emt 0:00:02]} Ne4 {[%emt 0:00:21]} 13. Bf4 {[%emt 0:00:04]} Ng5 {[%emt 0:00:04]} 14. Ne5 {[%emt 0:01:06]} f6 {[%emt 0:01:53]} 15. Ng4 {[%emt 0:03:33]} Nge6 {[%emt 0:01:42]} 16. Bg3 {[%emt 0:00:14]} Bd6 {[%emt 0:00:41]} 17. Bh2 {[%emt 0:01:14]} Bb4 {[%emt 0:01:33]} 18. Bg3 {[%emt 0:00:07]} Bd6 {[%emt 0:00:01]} 19. f4 {[%emt 0:01:43]} Nc7 {[%emt 0:01:04]} 20. Qf2 {[%emt 0:00:13]} Bd7 {[%emt 0:02:28]} 21. f5 {[%emt 0:00:07]} Bxg3 {[%emt 0:01:04]} 22. Qxg3 {[%emt 0:00:03]} Kh8 {[%emt 0:00:37]} 23. Ne2 {[%emt 0:01:31]} b6 {[%emt 0:01:04]} 24. Nf4 {[%emt 0:00:30]} Nb5 {[%emt 0:00:25]} 25. Qh4 {[%emt 0:00:36]} Nd6 {[%emt 0:01:03]} 26. Nh5 {[%emt 0:00:13]} Ne4 {[%emt 0:00:33]} 27. Bxe4 {[%emt 0:02:13]} Rxe4 {[%emt 0:00:27]} 28. Rf3 {[%emt 0:00:13]} Qe7 {[%emt 0:00:20]} 29. Ng3 {[%emt 0:00:16]} Re8 {[%emt 0:01:01]} 30. Nxe4 {[%emt 0:00:10]} dxe4 {[%emt 0:00:01]} 31. Rf2 {[%emt 0:00:36]} Rd8 {[%emt 0:00:07]} 32. Rfc2 {[%emt 0:00:34]} Be8 {[%emt 0:00:01]} 33. Nf2 {[%emt 0:00:05]} Bd7 {[%emt 0:00:09]} 34. Qf4 {[%emt 0:00:09]} Rc8 {[%emt 0:00:11]} 35. Rc3 {[%emt 0:00:27]} Qb4 {[%emt 0:00:08]} 36. b3 {[%emt 0:00:31]} Qa5 {[%emt 0:00:01]} 37. Nxe4 {[%emt 0:00:10]} Qxa2 {[%emt 0:00:12]} 38. Nd6 {[%emt 0:00:03]} Ra8 {[%emt 0:00:00]} 39. Nc4 {[%emt 0:00:06]} b5 {[%emt 0:00:24]} 40. Nb6 {[%emt 0:00:09]} Re8 {[%emt 0:00:02]} 41. Nxd7 {[%emt 0:00:28]} Nxd7 {[%emt 0:00:01]} 42. Qd6 {[%emt 0:00:01]} Nf8 {[%emt 0:00:09]} 43. Qxc6 {[%emt 0:00:16]} Rd8 {[%emt 0:00:07]} 44. Qc7 {[%emt 0:00:10]} Re8 {[%emt 0:00:01]} 45. Qc6 {[%emt 0:00:04]} Rd8 {[%emt 0:00:05]} 46. Qe4 {[%emt 0:00:03]} Qa5 {[%emt 0:00:09]} 47. Rc8 {[%emt 0:00:07]} h5 {[%emt 0:00:15]} 48. Qe7 {[%emt 0:00:09]} Rxc8 49. Rxc8 {[%emt 0:00:01]} Qe1+ {[%emt 0:00:08]} 50. Kh2 {[%emt 0:00:01]} Kh7 {[%emt 0:00:03]} 51. Qxf8 {[%emt 0:00:11]} Kh6 {[%emt 0:00:03]} 52. Qf7 {[%emt 0:00:07]} 1-0

[Event "ESP-ch Rapid 2018"]
[Site "Linares"]
[Date "2018.08.19"]
[Round "5"]
[White "Centron Antuna, Daniel"]
[Black "Gavilan Diaz, Mario"]
[Result "1-0"]
[ECO "D91"]
[WhiteElo "2231"]
[BlackElo "2334"]
[Annotator "NA"]
[PlyCount "59"]
[EventDate "2018.08.19"]
[EventType "team-tourn"]
[EventCountry "ESP"]
[SourceTitle "playchess.com"]
[Source "ChessBase"]
[SourceQuality "1"]
[TimeControl "900+5"]

1. d4 {[%emt 0:00:00]} Nf6 {[%emt 0:00:05]} 2. Nf3 {[%emt 0:00:00]} g6 {[%emt 0:00:05]} 3. c4 {[%emt 0:00:01]} Bg7 {[%emt 0:00:02]} 4. Nc3 {[%emt 0:00:14]} d5 {[%emt 0:00:02]} 5. Bg5 {[%emt 0:00:05]} Ne4 {[%emt 0:00:02]} 6. Bf4 {[%emt 0:00:03]} Nxc3 {[%emt 0:00:55]} 7. bxc3 {[%emt 0:00:02]} dxc4 {[%emt 0:00:19]} 8. e4 {[%emt 0:00:50]} c5 {[%emt 0:00:17]} 9. Bxc4 {[%emt 0:00:16]} cxd4 {[%emt 0:00:17]} 10. cxd4 {[%emt 0:00:07]} Nc6 {[%emt 0:00:04]} 11. d5 {[%emt 0:01:00]} Na5 {[%emt 0:01:02]} 12. Bb5+ {[%emt 0:00:13]} Kf8 {[%emt 0:02:44]} 13. Rc1 {[%emt 0:00:48]} e5 {[%emt 0:06:24]} 14. Be3 {[%emt 0:01:34]} b6 {[%emt 0:00:18]} 15. d6 {[%emt 0:01:03]} Bb7 {[%emt 0:00:10]} 16. Rc7 {[%emt 0:00:38]} h6 {[%emt 0:00:39]} 17. Qd3 {[%emt 0:00:56]} Bf6 {[%emt 0:01:34]} 18. Bd2 {[%emt 0:00:17]} Rb8 {[%emt 0:00:25]} 19. O-O {[%emt 0:00:28]} Kg7 {[%emt 0:00:09]} 20. Rd7 {[%emt 0:00:43]} Qg8 {[%emt 0:00:55]} 21. Bxa5 {[%emt 0:00:24]} Bc8 {[%emt 0:00:07]} 22. Bc3 {[%emt 0:00:53]} Bxd7 {[%emt 0:00:02]} 23. Bxd7 {[%emt 0:00:01]} Qd8 {[%emt 0:00:08]} 24. Ba4 {[%emt 0:00:15]} b5 {[%emt 0:00:06]} 25. Bb3 {[%emt 0:00:04]} Rb6 {[%emt 0:00:02]} 26. Rd1 {[%emt 0:00:04]} Re8 {[%emt 0:00:05]} 27. Ba5 {[%emt 0:00:05]} Qd7 {[%emt 0:00:04]} 28. Bxb6 {[%emt 0:00:04]} axb6 {[%emt 0:00:01]} 29. Rc1 {[%emt 0:00:15]} Rd8 {[%emt 0:00:01]} 30. Qd5 {[%emt 0:00:30]} 1-0

[Event "ESP-ch Rapid 2018"]
[Site "Linares"]
[Date "2018.08.19"]
[Round "5"]
[White "Sande Edreira, Jose Antonio"]
[Black "Perez Candelario, Manuel"]
[Result "1/2-1/2"]
[ECO "A13"]
[WhiteElo "2230"]
[BlackElo "2611"]
[Annotator "RC"]
[PlyCount "77"]
[EventDate "2018.08.19"]
[EventType "team-tourn"]
[EventCountry "ESP"]
[SourceTitle "playchess.com"]
[Source "ChessBase"]
[SourceQuality "1"]
[TimeControl "900+5"]

1. c4 {[%emt 0:00:00]} e6 {[%emt 0:00:00]} 2. Nf3 {[%emt 0:00:00]} d5 {[%emt 0:00:00]} 3. b3 {[%emt 0:00:00]} d4 {[%emt 0:00:01]} 4. g3 {[%emt 0:00:11]} c5 {[%emt 0:00:02]} 5. Bg2 {[%emt 0:00:06]} Nc6 {[%emt 0:00:03]} 6. O-O {[%emt 0:00:06]} Nf6 {[%emt 0:00:05]} 7. d3 {[%emt 0:00:08]} Be7 {[%emt 0:00:13]} 8. e3 {[%emt 0:00:03]} O-O {[%emt 0:00:06]} 9. exd4 {[%emt 0:00:02]} cxd4 {[%emt 0:00:03]} 10. Re1 {[%emt 0:00:10]} Nd7 {[%emt 0:00:21]} 11. Ba3 {[%emt 0:00:20]} Bxa3 {[%emt 0:01:07]} 12. Nxa3 {[%emt 0:00:02]} e5 {[%emt 0:00:13]} 13. Qd2 {[%emt 0:01:58]} f6 {[%emt 0:00:45]} 14. b4 {[%emt 0:00:46]} a5 {[%emt 0:00:04]} 15. b5 {[%emt 0:00:50]} Ncb8 {[%emt 0:01:01]} 16. c5 {[%emt 0:01:09]} Nxc5 {[%emt 0:00:21]} 17. Rac1 {[%emt 0:00:02]} Nbd7 {[%emt 0:00:28]} 18. Nc4 {[%emt 0:00:04]} Kh8 {[%emt 0:00:30]} 19. Nh4 {[%emt 0:00:13]} g5 {[%emt 0:01:38]} 20. Nf5 {[%emt 0:00:10]} Nb6 {[%emt 0:00:25]} 21. Ncd6 {[%emt 0:00:37]} Nba4 {[%emt 0:01:04]} 22. f4 {[%emt 0:00:34]} gxf4 {[%emt 0:00:36]} 23. gxf4 {[%emt 0:00:02]} Bxf5 {[%emt 0:00:08]} 24. Nxf5 {[%emt 0:00:02]} Qd7 {[%emt 0:00:09]} 25. Ng3 {[%emt 0:01:13]} Rae8 {[%emt 0:00:02]} 26. fxe5 {[%emt 0:01:12]} fxe5 {[%emt 0:00:02]} 27. Rf1 {[%emt 0:00:12]} Nc3 {[%emt 0:00:15]} 28. Kh1 {[%emt 0:01:34]} Ne6 {[%emt 0:00:53]} 29. Nh5 {[%emt 0:00:22]} Qe7 {[%emt 0:00:49]} 30. Qh6 {[%emt 0:00:41]} Ne2 {[%emt 0:00:17]} 31. Rce1 {[%emt 0:00:22]} N6f4 {[%emt 0:01:26]} 32. Be4 {[%emt 0:00:56]} Nxh5 {[%emt 0:00:33]} 33. Qxh5 {[%emt 0:00:02]} Nf4 {[%emt 0:00:22]} 34. Qh6 {[%emt 0:01:24]} Rf6 {[%emt 0:00:25]} 35. Qh4 {[%emt 0:00:03]} Re6 {[%emt 0:00:16]} 36. Qxe7 {[%emt 0:00:19]} R8xe7 {[%emt 0:00:11]} 37. Bf5 {[%emt 0:00:05]} Rf6 {[%emt 0:00:37]} 38. Rxf4 {[%emt 0:00:03]} exf4 {[%emt 0:00:03]} 39. Rxe7 {[%emt 0:00:06]} 1/2-1/2

[Event "ESP-ch Rapid 2018"]
[Site "Linares"]
[Date "2018.08.19"]
[Round "5"]
[White "Garcia Garcia, Adrian Antonio"]
[Black "Arroyo Rodriguez, Jesus"]
[Result "1-0"]
[ECO "B23"]
[WhiteElo "2179"]
[BlackElo "2099"]
[Annotator "NA"]
[PlyCount "55"]
[EventDate "2018.08.19"]
[EventType "team-tourn"]
[EventCountry "ESP"]
[SourceTitle "playchess.com"]
[Source "ChessBase"]
[SourceQuality "1"]
[TimeControl "900+5"]

1. e4 {[%emt 0:00:00]} c5 {[%emt 0:00:00]} 2. Nc3 {[%emt 0:00:00]} a6 {[%emt 0:00:00]} 3. g3 {[%emt 0:00:00]} b5 {[%emt 0:00:00]} 4. Bg2 {[%emt 0:00:00]} Bb7 {[%emt 0:00:01]} 5. f4 {[%emt 0:00:02]} e6 {[%emt 0:00:03]} 6. d3 {[%emt 0:00:01]} d5 {[%emt 0:00:03]} 7. e5 {[%emt 0:00:02]} Ne7 {[%emt 0:00:51]} 8. Nf3 {[%emt 0:00:02]} Nf5 {[%emt 0:00:02]} 9. O-O {[%emt 0:00:03]} h5 {[%emt 0:00:37]} 10. Ne2 {[%emt 0:00:17]} d4 {[%emt 0:02:05]} 11. Ng5 {[%emt 0:00:50]} Qc7 {[%emt 0:01:49]} 12. c3 {[%emt 0:01:02]} Nd7 {[%emt 0:00:08]} 13. Bd2 {[%emt 0:01:06]} Nb6 {[%emt 0:02:04]} 14. cxd4 {[%emt 0:00:32]} cxd4 {[%emt 0:00:41]} 15. Rc1 {[%emt 0:00:37]} Qd7 {[%emt 0:00:09]} 16. Qb3 {[%emt 0:02:26]} Nd5 {[%emt 0:00:06]} 17. Rfe1 {[%emt 0:01:06]} Nde3 {[%emt 0:00:21]} 18. Bxe3 {[%emt 0:00:15]} Bxg2 {[%emt 0:01:15]} 19. Bxd4 {[%emt 0:01:10]} Bd5 {[%emt 0:00:37]} 20. Qc3 {[%emt 0:00:10]} Nxd4 {[%emt 0:00:36]} 21. Qxd4 {[%emt 0:00:13]} Qb7 {[%emt 0:00:29]} 22. Ne4 {[%emt 0:00:13]} Rd8 {[%emt 0:00:42]} 23. Qe3 {[%emt 0:00:50]} h4 {[%emt 0:00:17]} 24. g4 {[%emt 0:00:28]} h3 {[%emt 0:00:59]} 25. N2c3 {[%emt 0:00:47]} Bb4 {[%emt 0:00:16]} 26. Re2 {[%emt 0:01:14]} Rc8 {[%emt 0:02:46]} 27. Nxd5 {[%emt 0:00:53]} Qxd5 {[%emt 0:00:02]} 28. Rxc8+ {[%emt 0:00:06]} 1-0

[Event "ESP-ch Rapid 2018"]
[Site "Linares"]
[Date "2018.08.19"]
[Round "5"]
[White "Fernandez De Bobadilla, Gabriel"]
[Black "Matnadze, Ana"]
[Result "0-1"]
[ECO "D36"]
[WhiteElo "2175"]
[BlackElo "2378"]
[Annotator "NA"]
[PlyCount "152"]
[EventDate "2018.08.19"]
[EventType "team-tourn"]
[EventCountry "ESP"]
[SourceTitle "playchess.com"]
[Source "ChessBase"]
[SourceQuality "1"]
[TimeControl "900+5"]

1. d4 {[%emt 0:00:00]} Nf6 {[%emt 0:00:00]} 2. c4 {[%emt 0:00:00]} e6 {[%emt 0:00:00]} 3. Nc3 {[%emt 0:00:00]} d5 {[%emt 0:00:00]} 4. cxd5 {[%emt 0:00:02]} exd5 {[%emt 0:00:01]} 5. Bg5 {[%emt 0:00:02]} c6 {[%emt 0:00:06]} 6. Qc2 {[%emt 0:00:02]} Be7 {[%emt 0:00:03]} 7. e3 {[%emt 0:00:01]} Nbd7 {[%emt 0:00:02]} 8. Bd3 {[%emt 0:00:02]} g6 {[%emt 0:00:03]} 9. Nge2 {[%emt 0:00:23]} Nf8 {[%emt 0:00:02]} 10. O-O {[%emt 0:00:19]} Ne6 {[%emt 0:00:04]} 11. Bxf6 {[%emt 0:00:10]} Bxf6 {[%emt 0:00:02]} 12. b4 {[%emt 0:00:19]} O-O {[%emt 0:00:09]} 13. Na4 {[%emt 0:00:26]} Qd6 {[%emt 0:01:01]} 14. Rab1 {[%emt 0:00:22]} b5 {[%emt 0:00:48]} 15. Nc5 {[%emt 0:02:01]} a5 {[%emt 0:00:03]} 16. a4 {[%emt 0:02:53]} axb4 {[%emt 0:05:41]} 17. axb5 {[%emt 0:01:05]} Be7 {[%emt 0:02:02]} 18. Rfc1 {[%emt 0:00:49]} cxb5 {[%emt 0:00:02]} 19. Rxb4 {[%emt 0:00:30]} Nc7 {[%emt 0:00:32]} 20. Bxb5 {[%emt 0:02:11]} Rb8 {[%emt 0:00:13]} 21. Qb2 {[%emt 0:01:32]} Bf5 {[%emt 0:00:29]} 22. Ng3 {[%emt 0:00:42]} Bg4 {[%emt 0:00:22]} 23. Bf1 {[%emt 0:00:53]} Rxb4 {[%emt 0:00:26]} 24. Qxb4 {[%emt 0:00:02]} h5 {[%emt 0:00:05]} 25. h3 {[%emt 0:00:45]} h4 {[%emt 0:00:03]} 26. Ne2 {[%emt 0:00:12]} Bf5 {[%emt 0:00:10]} 27. Nf4 {[%emt 0:00:54]} g5 {[%emt 0:00:33]} 28. Nfd3 {[%emt 0:00:13]} Ne8 {[%emt 0:01:11]} 29. Qd2 {[%emt 0:00:07]} Ng7 {[%emt 0:00:32]} 30. Ne5 {[%emt 0:00:12]} f6 {[%emt 0:00:05]} 31. Ng4 {[%emt 0:00:02]} Bg6 {[%emt 0:00:40]} 32. Bd3 {[%emt 0:00:11]} f5 {[%emt 0:00:01]} 33. Ne5 {[%emt 0:00:01]} Be8 {[%emt 0:00:02]} 34. Qa2 {[%emt 0:00:10]} Bf6 {[%emt 0:00:13]} 35. f4 {[%emt 0:00:06]} gxf4 {[%emt 0:00:07]} 36. exf4 {[%emt 0:00:01]} Nh5 {[%emt 0:00:17]} 37. Qf2 {[%emt 0:00:09]} Ng3 {[%emt 0:00:08]} 38. Be2 {[%emt 0:00:08]} Qb6 {[%emt 0:00:22]} 39. Bf3 {[%emt 0:00:03]} Ne4 {[%emt 0:00:27]} 40. Qa2 {[%emt 0:00:09]} Qb4 {[%emt 0:00:12]} 41. Rd1 {[%emt 0:00:07]} Nc3 {[%emt 0:00:06]} 42. Qd2 {[%emt 0:00:06]} Bb5 {[%emt 0:00:22]} 43. Re1 {[%emt 0:00:03]} Ra8 {[%emt 0:00:05]} 44. Kh2 {[%emt 0:00:02]} Ra2 {[%emt 0:00:01]} 45. Qe3 {[%emt 0:00:06]} Ne4 {[%emt 0:00:22]} 46. Nxe4 {[%emt 0:00:07]} dxe4 {[%emt 0:00:06]} 47. Bd1 {[%emt 0:00:03]} Kg7 {[%emt 0:00:05]} 48. Bh5 {[%emt 0:00:10]} Qb2 {[%emt 0:00:02]} 49. Rg1 {[%emt 0:00:01]} Ra3 {[%emt 0:00:05]} 50. Qc1 {[%emt 0:00:08]} Qc3 {[%emt 0:00:16]} 51. Qxc3 {[%emt 0:00:02]} Rxc3 {[%emt 0:00:01]} 52. Rb1 {[%emt 0:00:01]} Ba6 {[%emt 0:00:11]} 53. Rb6 {[%emt 0:00:02]} Ra3 {[%emt 0:00:01]} 54. Rc6 {[%emt 0:00:06]} Bd8 {[%emt 0:00:11]} 55. Rd6 {[%emt 0:00:03]} Ba5 {[%emt 0:00:15]} 56. Rd7+ {[%emt 0:00:02]} Kf8 {[%emt 0:00:01]} 57. Rf7+ {[%emt 0:00:07]} Kg8 {[%emt 0:00:01]} 58. Nd7 {[%emt 0:00:08]} Bd8 {[%emt 0:00:01]} 59. Rxf5 {[%emt 0:00:08]} Bf1 {[%emt 0:00:05]} 60. Kg1 {[%emt 0:00:04]} Bd3 {[%emt 0:00:05]} 61. Re5 {[%emt 0:00:04]} Ba5 {[%emt 0:00:05]} 62. Re7 {[%emt 0:00:10]} e3 {[%emt 0:00:05]} 63. Nf6+ {[%emt 0:00:02]} Kh8 {[%emt 0:00:02]} 64. Be2 {[%emt 0:00:05]} Bf5 {[%emt 0:00:03]} 65. Re5 {[%emt 0:00:03]} Ra1+ {[%emt 0:00:04]} 66. Kh2 {[%emt 0:00:01]} Be1 {[%emt 0:00:02]} 67. Nh5 {[%emt 0:00:03]} Bg6 {[%emt 0:00:03]} 68. g4 {[%emt 0:00:03]} Ra2 {[%emt 0:00:13]} 69. Rxe3 {[%emt 0:00:04]} Bf2 {[%emt 0:00:07]} 70. Re5 {[%emt 0:00:04]} Bxd4 {[%emt 0:00:03]} 71. Re6 {[%emt 0:00:04]} Bf7 {[%emt 0:00:09]} 72. Re7 {[%emt 0:00:01]} Bc4 {[%emt 0:00:07]} 73. Kg2 Bxe2 {[%emt 0:00:03]} 74. Re8+ {[%emt 0:00:11]} Kh7 {[%emt 0:00:02]} 75. Re7+ {[%emt 0:00:09]} Kg8 {[%emt 0:00:01]} 76. f5 {[%emt 0:00:16]} Bxg4+ {[%emt 0:00:07]} 0-1

[Event "ESP-ch Rapid 2018"]
[Site "Linares"]
[Date "2018.08.19"]
[Round "5"]
[White "De La Fuente Gonzalez, Francisco"]
[Black "Vazquez Gonzalez, Francisco"]
[Result "1-0"]
[ECO "A04"]
[WhiteElo "2174"]
[BlackElo "1926"]
[Annotator "NA"]
[PlyCount "59"]
[EventDate "2018.08.19"]
[EventType "team-tourn"]
[EventCountry "ESP"]
[SourceTitle "playchess.com"]
[Source "ChessBase"]
[SourceQuality "1"]
[TimeControl "900+5"]

1. Nf3 {[%emt 0:00:00]} f5 {[%emt 0:00:00]} 2. g3 {[%emt 0:00:00]} Nf6 {[%emt 0:00:01]} 3. Bg2 {[%emt 0:00:00]} g6 {[%emt 0:00:01]} 4. O-O {[%emt 0:00:04]} Bg7 {[%emt 0:00:01]} 5. d4 {[%emt 0:00:08]} O-O {[%emt 0:00:02]} 6. Nbd2 {[%emt 0:00:12]} d6 {[%emt 0:00:03]} 7. Re1 {[%emt 0:00:15]} Nc6 {[%emt 0:00:19]} 8. e4 {[%emt 0:00:11]} fxe4 {[%emt 0:00:19]} 9. Nxe4 {[%emt 0:00:02]} Nxe4 {[%emt 0:00:02]} 10. Rxe4 {[%emt 0:00:04]} Bf5 {[%emt 0:00:02]} 11. Re3 {[%emt 0:01:03]} Nb4 {[%emt 0:00:48]} 12. Re2 {[%emt 0:01:22]} Bg4 {[%emt 0:00:09]} 13. Re4 {[%emt 0:01:04]} Qd7 {[%emt 0:01:51]} 14. c3 {[%emt 0:01:51]} Qf5 {[%emt 0:01:13]} 15. Rf4 {[%emt 0:01:23]} Qh5 {[%emt 0:01:52]} 16. cxb4 {[%emt 0:00:43]} Rxf4 {[%emt 0:00:14]} 17. Bxf4 {[%emt 0:00:07]} e5 {[%emt 0:00:02]} 18. dxe5 {[%emt 0:00:23]} dxe5 {[%emt 0:00:41]} 19. Qd5+ {[%emt 0:00:04]} Kh8 {[%emt 0:00:02]} 20. Nxe5 {[%emt 0:00:15]} h6 {[%emt 0:03:17]} 21. Nxg4 {[%emt 0:02:36]} Qxg4 {[%emt 0:00:03]} 22. Be5 {[%emt 0:00:26]} c6 {[%emt 0:00:12]} 23. Bxg7+ {[%emt 0:00:07]} Kxg7 {[%emt 0:00:01]} 24. Qe4 {[%emt 0:00:07]} Qd7 {[%emt 0:00:10]} 25. Re1 {[%emt 0:00:11]} Kf7 {[%emt 0:00:13]} 26. Bf1 {[%emt 0:00:16]} b5 {[%emt 0:00:30]} 27. Bd3 {[%emt 0:00:17]} Qd6 {[%emt 0:00:16]} 28. Bc2 {[%emt 0:00:20]} Rd8 {[%emt 0:00:21]} 29. Rd1 {[%emt 0:00:11]} Qf6 {[%emt 0:00:17]} 30. Qxg6+ {[%emt 0:00:27]} 1-0

[Event "ESP-ch Rapid 2018"]
[Site "Linares"]
[Date "2018.08.19"]
[Round "5"]
[White "Dominguez Alcon, Victor"]
[Black "De la Fuente de la Fuente, Alba"]
[Result "1-0"]
[ECO "A84"]
[WhiteElo "2172"]
[BlackElo "1659"]
[Annotator "NA"]
[PlyCount "69"]
[EventDate "2018.08.19"]
[EventType "team-tourn"]
[EventCountry "ESP"]
[SourceTitle "playchess.com"]
[Source "ChessBase"]
[SourceQuality "1"]
[TimeControl "900+5"]

1. d4 {[%emt 0:00:00]} e6 {[%emt 0:00:05]} 2. c4 {[%emt 0:00:17]} f5 {[%emt 0:00:06]} 3. Nc3 {[%emt 0:00:04]} Nf6 {[%emt 0:00:04]} 4. Nf3 {[%emt 0:00:07]} d5 {[%emt 0:00:05]} 5. Bf4 {[%emt 0:00:05]} c6 {[%emt 0:00:17]} 6. e3 {[%emt 0:00:03]} Bd6 {[%emt 0:00:11]} 7. Ne5 {[%emt 0:00:23]} O-O {[%emt 0:00:52]} 8. h3 {[%emt 0:00:17]} Qe7 {[%emt 0:00:17]} 9. Bd3 {[%emt 0:00:41]} Nbd7 {[%emt 0:00:05]} 10. g4 {[%emt 0:00:26]} Ne4 {[%emt 0:00:42]} 11. Qc2 {[%emt 0:03:06]} Bxe5 {[%emt 0:01:41]} 12. dxe5 {[%emt 0:00:04]} Ndc5 {[%emt 0:00:48]} 13. gxf5 {[%emt 0:01:15]} Nxd3+ {[%emt 0:02:02]} 14. Qxd3 {[%emt 0:00:03]} Nxc3 {[%emt 0:00:22]} 15. f6 {[%emt 0:01:24]} gxf6 {[%emt 0:00:24]} 16. Qxc3 {[%emt 0:00:34]} f5 {[%emt 0:01:01]} 17. Rg1+ {[%emt 0:00:14]} Kf7 {[%emt 0:01:01]} 18. Bh6 {[%emt 0:01:20]} Rg8 {[%emt 0:00:09]} 19. Rxg8 {[%emt 0:00:05]} Kxg8 {[%emt 0:00:02]} 20. O-O-O {[%emt 0:00:17]} Qh4 {[%emt 0:01:08]} 21. Rg1+ {[%emt 0:00:24]} Kf7 {[%emt 0:00:03]} 22. Rg7+ {[%emt 0:00:18]} Ke8 {[%emt 0:00:02]} 23. Qb4 {[%emt 0:02:56]} Qxc4+ {[%emt 0:00:14]} 24. Qxc4 {[%emt 0:00:01]} dxc4 {[%emt 0:00:01]} 25. Rxh7 {[%emt 0:00:05]} b5 {[%emt 0:00:46]} 26. Bg5 {[%emt 0:00:09]} a5 {[%emt 0:00:24]} 27. h4 {[%emt 0:00:08]} Rb8 {[%emt 0:00:15]} 28. Rc7 {[%emt 0:00:39]} Bd7 {[%emt 0:00:29]} 29. h5 {[%emt 0:00:09]} Rc8 {[%emt 0:00:15]} 30. Ra7 {[%emt 0:00:12]} a4 {[%emt 0:00:21]} 31. h6 {[%emt 0:00:04]} a3 {[%emt 0:02:14]} 32. h7 {[%emt 0:00:19]} axb2+ {[%emt 0:00:07]} 33. Kxb2 {[%emt 0:00:04]} Kf7 {[%emt 0:00:14]} 34. Rxd7+ {[%emt 0:00:06]} Kg6 {[%emt 0:00:02]} 35. Bf6 {[%emt 0:00:06]} 1-0

[Event "ESP-ch Rapid 2018"]
[Site "Linares"]
[Date "2018.08.19"]
[Round "5"]
[White "Rodriguez Martin, Emilio"]
[Black "Blazquez Gomez, Juan Carlos"]
[Result "1/2-1/2"]
[ECO "A43"]
[WhiteElo "2159"]
[BlackElo "2240"]
[Annotator "NA"]
[PlyCount "101"]
[EventDate "2018.08.19"]
[EventType "team-tourn"]
[EventCountry "ESP"]
[SourceTitle "playchess.com"]
[Source "ChessBase"]
[SourceQuality "1"]
[TimeControl "900+5"]

1. d4 {[%emt 0:00:00]} c5 {[%emt 0:00:00]} 2. c3 {[%emt 0:00:01]} cxd4 {[%emt 0:00:08]} 3. cxd4 {[%emt 0:00:05]} Nf6 {[%emt 0:00:05]} 4. Nc3 {[%emt 0:00:02]} g6 {[%emt 0:00:03]} 5. e4 {[%emt 0:00:15]} d6 {[%emt 0:00:03]} 6. Nf3 {[%emt 0:00:15]} Bg7 {[%emt 0:00:02]} 7. h3 {[%emt 0:00:07]} O-O {[%emt 0:00:04]} 8. Be3 {[%emt 0:00:03]} a6 {[%emt 0:01:11]} 9. a4 {[%emt 0:00:09]} Qa5 {[%emt 0:00:19]} 10. Qd2 {[%emt 0:00:20]} Rd8 {[%emt 0:01:57]} 11. Be2 {[%emt 0:00:53]} b5 {[%emt 0:03:08]} 12. b4 {[%emt 0:00:21]} Qxb4 {[%emt 0:03:18]} 13. Rb1 {[%emt 0:00:06]} Qa5 {[%emt 0:00:25]} 14. axb5 {[%emt 0:00:22]} axb5 {[%emt 0:00:12]} 15. Bxb5 {[%emt 0:01:50]} Ba6 {[%emt 0:01:02]} 16. O-O {[%emt 0:01:00]} Rc8 {[%emt 0:01:26]} 17. Rfc1 {[%emt 0:03:11]} Bxb5 {[%emt 0:00:41]} 18. Nxb5 {[%emt 0:01:14]} Nc6 {[%emt 0:00:58]} 19. Qxa5 {[%emt 0:01:34]} Nxa5 {[%emt 0:00:02]} 20. e5 {[%emt 0:00:12]} dxe5 {[%emt 0:00:26]} 21. dxe5 {[%emt 0:00:30]} Nd5 {[%emt 0:00:02]} 22. e6 {[%emt 0:00:10]} fxe6 {[%emt 0:00:14]} 23. Bd4 {[%emt 0:01:08]} Rxc1+ {[%emt 0:00:06]} 24. Rxc1 {[%emt 0:00:01]} Nb3 {[%emt 0:00:01]} 25. Re1 {[%emt 0:00:20]} Nxd4 {[%emt 0:00:31]} 26. Nbxd4 {[%emt 0:00:01]} e5 {[%emt 0:00:07]} 27. Nc6 {[%emt 0:00:07]} Ra6 {[%emt 0:00:24]} 28. Ncxe5 {[%emt 0:00:09]} Re6 {[%emt 0:00:04]} 29. Nc4 {[%emt 0:00:29]} Rxe1+ {[%emt 0:00:03]} 30. Nxe1 {[%emt 0:00:01]} Kf7 {[%emt 0:00:04]} 31. g3 {[%emt 0:00:13]} Bd4 {[%emt 0:00:01]} 32. Kg2 {[%emt 0:00:03]} Nc3 {[%emt 0:00:04]} 33. Nc2 {[%emt 0:00:15]} Bf6 {[%emt 0:00:02]} 34. N2e3 {[%emt 0:00:06]} h6 {[%emt 0:00:04]} 35. h4 {[%emt 0:00:25]} Bd4 {[%emt 0:00:04]} 36. Kf3 {[%emt 0:00:04]} Bxe3 {[%emt 0:00:02]} 37. Nxe3 {[%emt 0:00:05]} Nb5 {[%emt 0:00:01]} 38. Ke4 {[%emt 0:00:10]} Ke6 {[%emt 0:00:07]} 39. f4 {[%emt 0:00:10]} Nd6+ {[%emt 0:00:02]} 40. Kd4 {[%emt 0:00:08]} Nf5+ {[%emt 0:00:18]} 41. Nxf5 {[%emt 0:00:24]} gxf5 {[%emt 0:00:01]} 42. Kc5 {[%emt 0:00:12]} h5 {[%emt 0:00:14]} 43. Kc6 {[%emt 0:00:03]} Kf6 {[%emt 0:00:01]} 44. Kd5 {[%emt 0:00:02]} Kf7 {[%emt 0:00:04]} 45. Ke5 {[%emt 0:00:03]} e6 {[%emt 0:00:01]} 46. Kd4 {[%emt 0:00:41]} Kf6 {[%emt 0:00:04]} 47. Ke3 {[%emt 0:00:01]} e5 {[%emt 0:00:01]} 48. fxe5+ {[%emt 0:00:01]} Kxe5 {[%emt 0:00:01]} 49. Kf3 {[%emt 0:00:01]} Ke6 {[%emt 0:00:04]} 50. Ke3 {[%emt 0:00:01]} Ke5 {[%emt 0:00:02]} 51. Kf3 {[%emt 0:00:01]} 1/2-1/2